[Event "Titled Tuesday Blitz November 14 Late 2023"]
[White "Likvidator228"]
[Black "Yang, Kevin"]
[BlackFideId "30908485"]
[WhiteElo "2577"]
[BlackElo "2424"]
[Result "0-1"]
[Round "3"]
[TimeControl "180+1"]
[Date "2023.11.14"]
[WhiteClock "0:00:14"]
[BlackClock "0:00:08"]
[Board "89"]

1. b3 {[%clk 0:03:00]}  c5 {[%clk 0:02:57]} 2. Bb2 {[%clk 0:03:00]}  Nc6 {[%clk 0:02:57]} 3. g3 {[%clk 0:03:00]}  Nf6 {[%clk 0:02:54]} 4. Bg2 {[%clk 0:03:01]}  e6 {[%clk 0:02:51]} 5. c4 {[%clk 0:03:01]}  Be7 {[%clk 0:02:50]} 6. Nf3 {[%clk 0:03:00]}  O-O {[%clk 0:02:48]} 7. O-O {[%clk 0:03:00]}  d5 {[%clk 0:02:48]} 8. d3 {[%clk 0:03:00]}  b6 {[%clk 0:02:45]} 9. Nbd2 {[%clk 0:02:58]}  Bb7 {[%clk 0:02:44]} 10. a3 {[%clk 0:02:56]}  Rc8 {[%clk 0:02:43]} 11. Qc2 {[%clk 0:02:55]}  Qc7 {[%clk 0:02:42]} 12. Rac1 {[%clk 0:02:53]}  Qb8 {[%clk 0:02:41]} 13. e4 {[%clk 0:02:45]}  dxe4 {[%clk 0:02:17]} 14. dxe4 {[%clk 0:02:44]}  Nd7 {[%clk 0:02:14]} 15. Rfe1 {[%clk 0:02:37]}  Nde5 {[%clk 0:02:07]} 16. Nxe5 {[%clk 0:02:35]}  Nxe5 {[%clk 0:01:58]} 17. f4 {[%clk 0:02:26]}  Nc6 {[%clk 0:01:56]} 18. e5 {[%clk 0:02:26]}  Rfd8 {[%clk 0:01:53]} 19. Ne4 {[%clk 0:02:23]}  Nd4 {[%clk 0:01:52]} 20. Bxd4 {[%clk 0:02:11]}  cxd4 {[%clk 0:01:46]} 21. b4 {[%clk 0:02:08]}  a5 {[%clk 0:01:42]} 22. Qb3 {[%clk 0:02:00]}  Bc6 {[%clk 0:00:59]} 23. Rcd1 {[%clk 0:01:48]}  Qa7 {[%clk 0:00:55]} 24. b5 {[%clk 0:01:30]}  Bxe4 {[%clk 0:00:49]} 25. Bxe4 {[%clk 0:01:30]}  a4 {[%clk 0:00:47]} 26. Qa2 {[%clk 0:01:24]}  Qa5 {[%clk 0:00:43]} 27. f5 {[%clk 0:00:57]}  Qc3 {[%clk 0:00:30]} 28. fxe6 {[%clk 0:00:56]}  fxe6 {[%clk 0:00:29]} 29. c5 {[%clk 0:00:56]}  Qb3 {[%clk 0:00:09]} 30. Qxb3 {[%clk 0:00:48]}  axb3 {[%clk 0:00:10]} 31. cxb6 {[%clk 0:00:42]}  Bxa3 {[%clk 0:00:10]} 32. Rd3 {[%clk 0:00:38]}  Rc3 {[%clk 0:00:09]} 33. Red1 {[%clk 0:00:36]}  Rxd3 {[%clk 0:00:08]} 34. Rxd3 {[%clk 0:00:35]}  b2 {[%clk 0:00:08]} 35. Rxa3 {[%clk 0:00:34]}  d3 {[%clk 0:00:08]} 36. Rb3 {[%clk 0:00:26]}  d2 {[%clk 0:00:08]} 37. Bc2 {[%clk 0:00:16]}  d1=Q+ {[%clk 0:00:08]} 38. Bxd1 {[%clk 0:00:17]}  Rxd1+ {[%clk 0:00:08]} 39. Kf2 {[%clk 0:00:18]}  b1=Q {[%clk 0:00:09]} 40. b7 {[%clk 0:00:17]}  Qc2+ {[%clk 0:00:08]} 41. Kf3 {[%clk 0:00:16]}  Qxb3+ {[%clk 0:00:07]} 42. Kg4 {[%clk 0:00:14]}  Qxb5 {[%clk 0:00:08]} 0-1


[Site "https://www.chess.com"]

[Event "Titled Tuesday Blitz November 14 Late 2023"]
[White "Omelja, Artem"]
[Black "Szyszylo, Rafal"]
[WhiteFideId "14119846"]
[BlackFideId "1109626"]
[WhiteElo "2570"]
[BlackElo "2408"]
[Result "1-0"]
[Round "3"]
[TimeControl "180+1"]
[Date "2023.11.14"]
[WhiteClock "0:01:04"]
[BlackClock "0:00:08"]
[Board "94"]

1. e4 {[%clk 0:03:00]}  d6 {[%clk 0:02:56]} 2. d4 {[%clk 0:02:57]}  Nf6 {[%clk 0:02:55]} 3. Nc3 {[%clk 0:02:57]}  g6 {[%clk 0:02:55]} 4. g3 {[%clk 0:02:57]}  Bg7 {[%clk 0:02:55]} 5. Bg2 {[%clk 0:02:57]}  O-O {[%clk 0:02:56]} 6. Nge2 {[%clk 0:02:57]}  e5 {[%clk 0:02:57]} 7. O-O {[%clk 0:02:57]}  exd4 {[%clk 0:02:57]} 8. Nxd4 {[%clk 0:02:56]}  Re8 {[%clk 0:02:57]} 9. h3 {[%clk 0:02:56]}  Nc6 {[%clk 0:02:36]} 10. Nxc6 {[%clk 0:02:55]}  bxc6 {[%clk 0:02:36]} 11. f4 {[%clk 0:02:55]}  Rb8 {[%clk 0:02:26]} 12. e5 {[%clk 0:02:38]}  Nh5 {[%clk 0:02:18]} 13. g4 {[%clk 0:02:29]}  Ng3 {[%clk 0:02:16]} 14. Rf3 {[%clk 0:02:29]}  Qh4 {[%clk 0:02:16]} 15. Rxg3 {[%clk 0:01:33]}  Qxg3 {[%clk 0:02:15]} 16. Ne4 {[%clk 0:01:33]}  Qh4 {[%clk 0:01:56]} 17. f5 {[%clk 0:01:33]}  Qd8 {[%clk 0:00:48]} 18. Bg5 {[%clk 0:01:33]}  Qd7 {[%clk 0:00:41]} 19. Bf6 {[%clk 0:01:04]}  dxe5 {[%clk 0:00:38]} 20. Qc1 {[%clk 0:01:04]}  Qd4+ {[%clk 0:00:37]} 21. Kh2 {[%clk 0:01:04]}  Qxb2 {[%clk 0:00:28]} 22. Qe3 {[%clk 0:01:03]}  Qxa1 {[%clk 0:00:25]} 23. Bxg7 {[%clk 0:01:03]}  Kxg7 {[%clk 0:00:24]} 24. f6+ {[%clk 0:01:03]}  Kh8 {[%clk 0:00:24]} 25. Qh6 {[%clk 0:01:04]}  Rg8 {[%clk 0:00:10]} 26. Ng5 {[%clk 0:01:04]}  Be6 {[%clk 0:00:08]} 27. Qxh7# {[%clk 0:01:04]} 1-0


[Site "https://www.chess.com"]

[Event "Titled Tuesday Blitz November 14 Late 2023"]
[White "Gurevich, Dmitry"]
[Black "Shapiro, Viktor"]
[WhiteFideId "2000407"]
[BlackFideId "4175700"]
[WhiteElo "2406"]
[BlackElo "2568"]
[Result "1-0"]
[Round "3"]
[TimeControl "180+1"]
[Date "2023.11.14"]
[WhiteClock "0:00:02"]
[BlackClock "0:00:00"]
[Board "95"]

1. d4 {[%clk 0:03:00]}  Nf6 {[%clk 0:02:59]} 2. c4 {[%clk 0:03:00]}  e6 {[%clk 0:02:58]} 3. Nc3 {[%clk 0:02:58]}  c5 {[%clk 0:02:55]} 4. d5 {[%clk 0:02:57]}  exd5 {[%clk 0:02:56]} 5. cxd5 {[%clk 0:02:56]}  d6 {[%clk 0:02:55]} 6. e4 {[%clk 0:02:55]}  g6 {[%clk 0:02:56]} 7. f4 {[%clk 0:02:54]}  Bg7 {[%clk 0:02:56]} 8. Bb5+ {[%clk 0:02:53]}  Nfd7 {[%clk 0:02:57]} 9. a4 {[%clk 0:02:51]}  O-O {[%clk 0:02:57]} 10. Nf3 {[%clk 0:02:51]}  f5 {[%clk 0:02:52]} 11. exf5 {[%clk 0:02:48]}  Re8+ {[%clk 0:02:48]} 12. Be2 {[%clk 0:02:44]}  gxf5 {[%clk 0:02:46]} 13. O-O {[%clk 0:02:42]}  Nf6 {[%clk 0:02:39]} 14. Bd3 {[%clk 0:02:37]}  Na6 {[%clk 0:02:34]} 15. Bd2 {[%clk 0:02:26]}  Nb4 {[%clk 0:02:34]} 16. Bc4 {[%clk 0:02:21]}  Ne4 {[%clk 0:02:25]} 17. Be1 {[%clk 0:02:14]}  Qf6 {[%clk 0:02:08]} 18. Kh1 {[%clk 0:02:10]}  Qh6 {[%clk 0:02:05]} 19. Rc1 {[%clk 0:01:58]}  Bd7 {[%clk 0:02:04]} 20. Nxe4 {[%clk 0:01:53]}  Rxe4 {[%clk 0:02:00]} 21. Ng5 {[%clk 0:01:51]}  Rd4 {[%clk 0:01:53]} 22. Qf3 {[%clk 0:01:45]}  Re8 {[%clk 0:01:42]} 23. Bc3 {[%clk 0:01:36]}  Qg6 {[%clk 0:00:51]} 24. Bxd4 {[%clk 0:01:28]}  Bxd4 {[%clk 0:00:51]} 25. Rce1 {[%clk 0:01:22]}  Bxb2 {[%clk 0:00:45]} 26. Rxe8+ {[%clk 0:01:19]}  Qxe8 {[%clk 0:00:45]} 27. Ne6 {[%clk 0:01:16]}  Qg6 {[%clk 0:00:43]} 28. Qe2 {[%clk 0:01:09]}  Bf6 {[%clk 0:00:39]} 29. Rf3 {[%clk 0:01:06]}  Kh8 {[%clk 0:00:35]} 30. Rg3 {[%clk 0:00:59]}  Qe8 {[%clk 0:00:28]} 31. Qf3 {[%clk 0:00:36]}  Bxa4 {[%clk 0:00:22]} 32. h3 {[%clk 0:00:30]}  Bc2 {[%clk 0:00:20]} 33. Kh2 {[%clk 0:00:22]}  Be4 {[%clk 0:00:20]} 34. Qd1 {[%clk 0:00:20]}  b5 {[%clk 0:00:20]} 35. Nc7 {[%clk 0:00:17]}  Qf7 {[%clk 0:00:18]} 36. Nxb5 {[%clk 0:00:16]}  Qe7 {[%clk 0:00:17]} 37. Qh5 {[%clk 0:00:11]}  Qf8 {[%clk 0:00:12]} 38. Nc7 {[%clk 0:00:09]}  h6 {[%clk 0:00:03]} 39. Ne6 {[%clk 0:00:08]}  Qg7 {[%clk 0:00:04]} 40. Qe8+ {[%clk 0:00:05]}  Kh7 {[%clk 0:00:04]} 41. Nf8+ {[%clk 0:00:04]}  Qxf8 {[%clk 0:00:00]} 42. Qxf8 {[%clk 0:00:02]} 1-0


[Site "https://www.chess.com"]

[Event "Titled Tuesday Blitz November 14 Late 2023"]
[White "Lalanne, Pablo"]
[Black "Ozates, Tuna"]
[WhiteFideId "112151"]
[BlackFideId "6354521"]
[WhiteElo "2364"]
[BlackElo "2552"]
[Result "0-1"]
[Round "3"]
[TimeControl "180+1"]
[Date "2023.11.14"]
[WhiteClock "0:00:10"]
[BlackClock "0:00:10"]
[Board "101"]

1. d4 {[%clk 0:03:00]}  Nf6 {[%clk 0:02:55]} 2. c4 {[%clk 0:02:59]}  g6 {[%clk 0:02:55]} 3. Nc3 {[%clk 0:02:59]}  Bg7 {[%clk 0:02:56]} 4. e4 {[%clk 0:02:58]}  d6 {[%clk 0:02:57]} 5. Nf3 {[%clk 0:02:57]}  O-O {[%clk 0:02:57]} 6. Be2 {[%clk 0:02:57]}  Na6 {[%clk 0:02:54]} 7. O-O {[%clk 0:02:57]}  e5 {[%clk 0:02:54]} 8. Be3 {[%clk 0:02:53]}  Ng4 {[%clk 0:02:50]} 9. Bg5 {[%clk 0:02:54]}  Qe8 {[%clk 0:02:45]} 10. h3 {[%clk 0:02:42]}  exd4 {[%clk 0:02:44]} 11. Nxd4 {[%clk 0:02:41]}  Ne5 {[%clk 0:02:44]} 12. f4 {[%clk 0:02:30]}  Nc6 {[%clk 0:02:35]} 13. Ndb5 {[%clk 0:02:23]}  Bd7 {[%clk 0:02:16]} 14. Bg4 {[%clk 0:02:16]}  f5 {[%clk 0:01:54]} 15. exf5 {[%clk 0:02:15]}  Bxf5 {[%clk 0:01:55]} 16. Re1 {[%clk 0:01:57]}  Qd7 {[%clk 0:01:49]} 17. Bxf5 {[%clk 0:01:52]}  Rxf5 {[%clk 0:01:46]} 18. Nd5 {[%clk 0:01:20]}  h6 {[%clk 0:01:20]} 19. Ne7+ {[%clk 0:01:04]}  Nxe7 {[%clk 0:01:20]} 20. Rxe7 {[%clk 0:01:04]}  Qc6 {[%clk 0:01:16]} 21. Bh4 {[%clk 0:00:48]}  Qxc4 {[%clk 0:01:13]} 22. a4 {[%clk 0:00:33]}  Qxf4 {[%clk 0:01:08]} 23. Qe1 {[%clk 0:00:30]}  Be5 {[%clk 0:00:54]} 24. g3 {[%clk 0:00:25]}  Qf3 {[%clk 0:00:40]} 25. Ra3 {[%clk 0:00:25]}  Qd5 {[%clk 0:00:30]} 26. Nxc7 {[%clk 0:00:15]}  Nxc7 {[%clk 0:00:30]} 27. Rxc7 {[%clk 0:00:16]}  Raf8 {[%clk 0:00:27]} 28. g4 {[%clk 0:00:14]}  Bd4+ {[%clk 0:00:15]} 29. Kh2 {[%clk 0:00:14]}  Re5 {[%clk 0:00:15]} 30. Qd1 {[%clk 0:00:09]}  Re4 {[%clk 0:00:08]} 31. Qb3 {[%clk 0:00:07]}  Re2+ {[%clk 0:00:08]} 32. Kg3 {[%clk 0:00:06]}  Bf2+ {[%clk 0:00:06]} 33. Kh2 {[%clk 0:00:06]}  Bxh4+ {[%clk 0:00:06]} 34. Kg1 {[%clk 0:00:07]}  Bf2+ {[%clk 0:00:06]} 35. Kf1 {[%clk 0:00:06]}  Qxb3 {[%clk 0:00:03]} 36. Rxb3 {[%clk 0:00:07]}  Re1+ {[%clk 0:00:04]} 37. Kg2 {[%clk 0:00:06]}  Bh4 {[%clk 0:00:04]} 38. Rc2 {[%clk 0:00:05]}  Re7 {[%clk 0:00:03]} 39. Rd3 {[%clk 0:00:04]}  Re6 {[%clk 0:00:03]} 40. Rb3 {[%clk 0:00:03]}  Rf7 {[%clk 0:00:03]} 41. a5 {[%clk 0:00:03]}  Kg7 {[%clk 0:00:02]} 42. a6 {[%clk 0:00:04]}  bxa6 {[%clk 0:00:03]} 43. Rd3 {[%clk 0:00:04]}  Rfe7 {[%clk 0:00:03]} 44. Rcd2 {[%clk 0:00:05]}  Re2+ {[%clk 0:00:04]} 45. Rxe2 {[%clk 0:00:05]}  Rxe2+ {[%clk 0:00:05]} 46. Kf3 {[%clk 0:00:06]}  Rxb2 {[%clk 0:00:05]} 47. Rxd6 {[%clk 0:00:07]}  Rb7 {[%clk 0:00:06]} 48. Rd7+ {[%clk 0:00:08]}  Rxd7 {[%clk 0:00:06]} 49. Ke4 {[%clk 0:00:09]}  Rf7 {[%clk 0:00:06]} 50. Ke5 {[%clk 0:00:09]}  Bg5 {[%clk 0:00:07]} 51. Kd5 {[%clk 0:00:10]}  Rf3 {[%clk 0:00:08]} 52. Kc4 {[%clk 0:00:11]}  Rxh3 {[%clk 0:00:09]} 53. Kb4 {[%clk 0:00:10]}  Rg3 {[%clk 0:00:10]} 0-1


[Site "https://www.chess.com"]

[Event "Titled Tuesday Blitz November 14 Late 2023"]
[White "angelgab3"]
[Black "Skaric, Djuro"]
[BlackFideId "934569"]
[WhiteElo "2551"]
[BlackElo "2362"]
[Result "1-0"]
[Round "3"]
[TimeControl "180+1"]
[Date "2023.11.14"]
[WhiteClock "0:00:44"]
[BlackClock "0:00:11"]
[Board "102"]

1. e4 {[%clk 0:03:00]}  d6 {[%clk 0:03:00]} 2. d4 {[%clk 0:03:00]}  g6 {[%clk 0:03:00]} 3. Nc3 {[%clk 0:03:01]}  Bg7 {[%clk 0:03:00]} 4. f4 {[%clk 0:03:02]}  e6 {[%clk 0:02:57]} 5. Nf3 {[%clk 0:03:02]}  b6 {[%clk 0:02:57]} 6. Bd3 {[%clk 0:03:02]}  Bb7 {[%clk 0:02:57]} 7. Be3 {[%clk 0:03:02]}  Ne7 {[%clk 0:02:58]} 8. Qe2 {[%clk 0:02:57]}  h5 {[%clk 0:02:57]} 9. O-O-O {[%clk 0:02:57]}  Nd7 {[%clk 0:02:53]} 10. h3 {[%clk 0:02:57]}  a6 {[%clk 0:02:52]} 11. g4 {[%clk 0:02:57]}  b5 {[%clk 0:02:46]} 12. f5 {[%clk 0:02:55]}  exf5 {[%clk 0:02:43]} 13. exf5 {[%clk 0:02:54]}  gxf5 {[%clk 0:02:43]} 14. Rhg1 {[%clk 0:02:36]}  Nb6 {[%clk 0:02:16]} 15. Bg5 {[%clk 0:02:27]}  f6 {[%clk 0:02:16]} 16. Bh4 {[%clk 0:02:08]}  hxg4 {[%clk 0:02:15]} 17. hxg4 {[%clk 0:02:07]}  Bc8 {[%clk 0:02:10]} 18. gxf5 {[%clk 0:02:01]}  Kf7 {[%clk 0:02:00]} 19. Rde1 {[%clk 0:01:51]}  Nxf5 {[%clk 0:01:58]} 20. Bf2 {[%clk 0:01:36]}  c6 {[%clk 0:01:43]} 21. Ne4 {[%clk 0:01:22]}  Bh6+ {[%clk 0:01:19]} 22. Kb1 {[%clk 0:01:21]}  Nd5 {[%clk 0:01:19]} 23. Ng3 {[%clk 0:00:57]}  Nf4 {[%clk 0:01:12]} 24. Qf1 {[%clk 0:00:51]}  Nxg3 {[%clk 0:01:02]} 25. Bxg3 {[%clk 0:00:50]}  Nxd3 {[%clk 0:00:59]} 26. Qxd3 {[%clk 0:00:51]}  Qd7 {[%clk 0:00:39]} 27. Nh4 {[%clk 0:00:47]}  Rg8 {[%clk 0:00:34]} 28. Qh7+ {[%clk 0:00:46]}  Bg7 {[%clk 0:00:32]} 29. Bxd6 {[%clk 0:00:44]}  Qxd6 {[%clk 0:00:15]} 30. Qg6+ {[%clk 0:00:43]}  Kf8 {[%clk 0:00:11]} 31. Re8# {[%clk 0:00:44]} 1-0


[Site "https://www.chess.com"]

[Event "Titled Tuesday Blitz November 14 Late 2023"]
[White "Cervantes Landeiro, Thalia"]
[Black "Huda, Maryana"]
[WhiteFideId "3520498"]
[BlackFideId "14116553"]
[WhiteElo "2547"]
[BlackElo "2355"]
[Result "1-0"]
[Round "3"]
[TimeControl "180+1"]
[Date "2023.11.14"]
[WhiteClock "0:00:57"]
[BlackClock "0:00:01"]
[Board "104"]

1. d4 {[%clk 0:03:00]}  d5 {[%clk 0:02:58]} 2. c4 {[%clk 0:03:00]}  e6 {[%clk 0:02:58]} 3. Nc3 {[%clk 0:02:59]}  Nf6 {[%clk 0:02:58]} 4. cxd5 {[%clk 0:02:59]}  exd5 {[%clk 0:02:57]} 5. Bg5 {[%clk 0:02:59]}  Be7 {[%clk 0:02:57]} 6. e3 {[%clk 0:02:58]}  c6 {[%clk 0:02:56]} 7. Bd3 {[%clk 0:02:56]}  O-O {[%clk 0:02:55]} 8. Qc2 {[%clk 0:02:55]}  h6 {[%clk 0:02:53]} 9. Bh4 {[%clk 0:02:55]}  Re8 {[%clk 0:02:53]} 10. Nf3 {[%clk 0:02:55]}  Nbd7 {[%clk 0:02:47]} 11. O-O-O {[%clk 0:02:49]}  Ne4 {[%clk 0:02:44]} 12. Bxe4 {[%clk 0:02:34]}  dxe4 {[%clk 0:02:37]} 13. Qxe4 {[%clk 0:02:28]}  Bxh4 {[%clk 0:02:34]} 14. Qxh4 {[%clk 0:02:27]}  Qxh4 {[%clk 0:02:33]} 15. Nxh4 {[%clk 0:02:28]}  Nf6 {[%clk 0:02:29]} 16. Nf3 {[%clk 0:02:27]}  Bg4 {[%clk 0:02:27]} 17. Rhe1 {[%clk 0:02:26]}  Ne4 {[%clk 0:02:23]} 18. Nxe4 {[%clk 0:02:22]}  Rxe4 {[%clk 0:02:24]} 19. Rd2 {[%clk 0:02:22]}  Bxf3 {[%clk 0:02:19]} 20. gxf3 {[%clk 0:02:22]}  Rh4 {[%clk 0:02:19]} 21. Rh1 {[%clk 0:02:21]}  Rd8 {[%clk 0:02:15]} 22. f4 {[%clk 0:02:20]}  Rh5 {[%clk 0:02:14]} 23. f3 {[%clk 0:02:13]}  Rhd5 {[%clk 0:02:13]} 24. Kc2 {[%clk 0:02:05]}  c5 {[%clk 0:02:11]} 25. Rhd1 {[%clk 0:02:05]}  cxd4 {[%clk 0:02:11]} 26. Rxd4 {[%clk 0:02:05]}  Rxd4 {[%clk 0:02:09]} 27. Rxd4 {[%clk 0:02:05]}  Rxd4 {[%clk 0:02:10]} 28. exd4 {[%clk 0:02:05]}  Kf8 {[%clk 0:02:10]} 29. Kd3 {[%clk 0:02:03]}  Ke7 {[%clk 0:02:10]} 30. Ke4 {[%clk 0:02:02]}  g6 {[%clk 0:02:08]} 31. f5 {[%clk 0:01:45]}  g5 {[%clk 0:02:02]} 32. Ke5 {[%clk 0:01:35]}  f6+ {[%clk 0:01:55]} 33. Kd5 {[%clk 0:01:35]}  h5 {[%clk 0:01:52]} 34. b4 {[%clk 0:01:29]}  Kd7 {[%clk 0:01:30]} 35. a4 {[%clk 0:01:22]}  Ke7 {[%clk 0:01:28]} 36. a5 {[%clk 0:01:19]}  Kd7 {[%clk 0:01:25]} 37. Kc5 {[%clk 0:01:19]}  Kc7 {[%clk 0:01:07]} 38. d5 {[%clk 0:01:11]}  Kd7 {[%clk 0:01:02]} 39. d6 {[%clk 0:01:09]}  Kc8 {[%clk 0:00:51]} 40. Kd5 {[%clk 0:01:05]}  Kd7 {[%clk 0:00:50]} 41. b5 {[%clk 0:01:05]}  a6 {[%clk 0:00:12]} 42. bxa6 {[%clk 0:01:02]}  bxa6 {[%clk 0:00:11]} 43. Kc5 {[%clk 0:01:03]}  Kc8 {[%clk 0:00:10]} 44. Kb6 {[%clk 0:00:59]}  Kd7 {[%clk 0:00:10]} 45. Kxa6 {[%clk 0:00:59]}  Kxd6 {[%clk 0:00:09]} 46. Kb7 {[%clk 0:01:00]}  Ke5 {[%clk 0:00:07]} 47. a6 {[%clk 0:01:00]}  Kxf5 {[%clk 0:00:08]} 48. a7 {[%clk 0:01:00]}  Kf4 {[%clk 0:00:06]} 49. a8=Q {[%clk 0:01:00]}  Kxf3 {[%clk 0:00:07]} 50. Qf8 {[%clk 0:00:58]}  Kg2 {[%clk 0:00:06]} 51. Qxf6 {[%clk 0:00:57]}  Kxh2 {[%clk 0:00:04]} 52. Qxg5 {[%clk 0:00:57]}  h4 {[%clk 0:00:01]} 53. Qxh4+ {[%clk 0:00:57]} 1-0


[Site "https://www.chess.com"]

[Event "Titled Tuesday Blitz November 14 Late 2023"]
[White "Pinheiro, Iung Alicio de O."]
[Black "patzersame"]
[WhiteFideId "2104350"]
[WhiteElo "2545"]
[BlackElo "2336"]
[Result "1-0"]
[Round "3"]
[TimeControl "180+1"]
[Date "2023.11.14"]
[WhiteClock "0:00:20"]
[BlackClock "0:00:12"]
[Board "107"]

1. Nf3 {[%clk 0:03:00]}  Nf6 {[%clk 0:02:59]} 2. b3 {[%clk 0:03:00]}  b6 {[%clk 0:03:00]} 3. g3 {[%clk 0:02:59]}  Bb7 {[%clk 0:03:00]} 4. Bg2 {[%clk 0:02:59]}  g5 {[%clk 0:03:00]} 5. Bb2 {[%clk 0:02:46]}  g4 {[%clk 0:03:00]} 6. Nh4 {[%clk 0:02:46]}  Bxg2 {[%clk 0:02:59]} 7. Nxg2 {[%clk 0:02:46]}  Nc6 {[%clk 0:02:53]} 8. h3 {[%clk 0:02:41]}  gxh3 {[%clk 0:02:44]} 9. Rxh3 {[%clk 0:02:40]}  d5 {[%clk 0:02:44]} 10. d4 {[%clk 0:02:32]}  Qd7 {[%clk 0:02:43]} 11. Nf4 {[%clk 0:02:29]}  O-O-O {[%clk 0:02:39]} 12. Nd2 {[%clk 0:02:22]}  Ng4 {[%clk 0:02:29]} 13. Nf3 {[%clk 0:02:10]}  Bg7 {[%clk 0:02:23]} 14. Qd3 {[%clk 0:02:05]}  e5 {[%clk 0:02:10]} 15. dxe5 {[%clk 0:01:55]}  Ngxe5 {[%clk 0:02:11]} 16. Nxe5 {[%clk 0:01:52]}  Nxe5 {[%clk 0:02:11]} 17. Qa6+ {[%clk 0:01:49]}  Kb8 {[%clk 0:02:11]} 18. O-O-O {[%clk 0:01:49]}  c6 {[%clk 0:01:16]} 19. Rh5 {[%clk 0:01:34]}  f6 {[%clk 0:01:06]} 20. e4 {[%clk 0:01:21]}  Qg4 {[%clk 0:00:59]} 21. exd5 {[%clk 0:01:07]}  Ng6 {[%clk 0:00:59]} 22. Nxg6 {[%clk 0:00:59]}  Qxh5 {[%clk 0:00:47]} 23. Nxh8 {[%clk 0:00:57]}  Bxh8 {[%clk 0:00:46]} 24. d6 {[%clk 0:00:39]}  Qc5 {[%clk 0:00:34]} 25. Qd3 {[%clk 0:00:37]}  Qxf2 {[%clk 0:00:30]} 26. Qxh7 {[%clk 0:00:36]}  Qxg3 {[%clk 0:00:21]} 27. Qc7+ {[%clk 0:00:35]}  Ka8 {[%clk 0:00:21]} 28. Qxd8+ {[%clk 0:00:36]}  Kb7 {[%clk 0:00:22]} 29. Qc7+ {[%clk 0:00:35]}  Ka6 {[%clk 0:00:22]} 30. Qc8+ {[%clk 0:00:35]}  Ka5 {[%clk 0:00:21]} 31. Qxh8 {[%clk 0:00:36]}  c5 {[%clk 0:00:14]} 32. d7 {[%clk 0:00:35]}  c4 {[%clk 0:00:14]} 33. d8=Q {[%clk 0:00:30]}  c3 {[%clk 0:00:14]} 34. Qh5+ {[%clk 0:00:28]}  Kb4 {[%clk 0:00:12]} 35. a3# {[%clk 0:00:20]} 1-0


[Site "https://www.chess.com"]

[Event "Titled Tuesday Blitz November 14 Late 2023"]
[White "Novik, Maxim"]
[Black "Szente Varga, Fruzsina"]
[WhiteFideId "4102924"]
[BlackFideId "712264"]
[WhiteElo "2542"]
[BlackElo "2331"]
[Result "0-1"]
[Round "3"]
[TimeControl "180+1"]
[Date "2023.11.14"]
[WhiteClock "0:01:24"]
[BlackClock "0:01:05"]
[Board "108"]

1. e4 {[%clk 0:03:00]}  c5 {[%clk 0:02:58]} 2. Nf3 {[%clk 0:02:59]}  Nc6 {[%clk 0:02:59]} 3. Bb5 {[%clk 0:02:59]}  g6 {[%clk 0:02:58]} 4. Bxc6 {[%clk 0:02:59]}  dxc6 {[%clk 0:02:59]} 5. d3 {[%clk 0:02:59]}  Bg7 {[%clk 0:03:00]} 6. h3 {[%clk 0:02:59]}  Nf6 {[%clk 0:02:58]} 7. O-O {[%clk 0:03:00]}  Nd7 {[%clk 0:02:53]} 8. a4 {[%clk 0:03:00]}  e5 {[%clk 0:02:52]} 9. a5 {[%clk 0:02:59]}  Nf8 {[%clk 0:02:47]} 10. Nbd2 {[%clk 0:02:57]}  Ne6 {[%clk 0:02:40]} 11. Nc4 {[%clk 0:02:57]}  Qc7 {[%clk 0:02:40]} 12. Be3 {[%clk 0:02:53]}  h6 {[%clk 0:02:29]} 13. Qd2 {[%clk 0:02:48]}  g5 {[%clk 0:02:29]} 14. b4 {[%clk 0:02:47]}  cxb4 {[%clk 0:02:20]} 15. Qxb4 {[%clk 0:02:46]}  c5 {[%clk 0:02:20]} 16. Qb2 {[%clk 0:02:45]}  Nd4 {[%clk 0:02:18]} 17. Nfd2 {[%clk 0:02:43]}  g4 {[%clk 0:02:03]} 18. hxg4 {[%clk 0:02:40]}  Bxg4 {[%clk 0:02:02]} 19. f3 {[%clk 0:02:40]}  Be6 {[%clk 0:01:59]} 20. c3 {[%clk 0:02:39]}  Ne2+ {[%clk 0:01:55]} 21. Kf2 {[%clk 0:02:39]}  Nf4 {[%clk 0:01:49]} 22. Bxf4 {[%clk 0:02:27]}  exf4 {[%clk 0:01:50]} 23. Qc2 {[%clk 0:02:13]}  O-O {[%clk 0:01:48]} 24. Rh1 {[%clk 0:02:12]}  b5 {[%clk 0:01:43]} 25. axb6 {[%clk 0:02:09]}  axb6 {[%clk 0:01:44]} 26. Rab1 {[%clk 0:01:54]}  Rfb8 {[%clk 0:01:38]} 27. Rb5 {[%clk 0:01:52]}  Bd7 {[%clk 0:01:28]} 28. Rhb1 {[%clk 0:01:51]}  Bxb5 {[%clk 0:01:18]} 29. Rxb5 {[%clk 0:01:51]}  Qd8 {[%clk 0:01:19]} 30. Qb2 {[%clk 0:01:48]}  Qxd3 {[%clk 0:01:14]} 31. Qb1 {[%clk 0:01:30]}  Qxc3 {[%clk 0:01:07]} 32. Kg1 {[%clk 0:01:30]}  Ra1 {[%clk 0:01:06]} 33. Kh2 {[%clk 0:01:29]}  Rxb1 {[%clk 0:01:06]} 34. Rxb1 {[%clk 0:01:24]}  b5 {[%clk 0:01:05]} 0-1


[Site "https://www.chess.com"]